[Event "German Bundesliga 2023-24"]
[Site "Germany"]
[Date "2024.02.24"]
[Round "10.28"]
[White "Vachier-Lagrave, Maxime"]
[Black "Mamedyarov, Shakhriyar"]
[Result "1/2-1/2"]
[ECO "C83"]
[WhiteElo "2734"]
[BlackElo "2734"]
[Annotator "TA"]
[PlyCount "73"]
[EventDate "2023.10.20"]
[EventType "team-tourn"]
[EventCountry "GER"]
[SourceTitle "playchess.com"]
[Source "ChessBase"]
[SourceQuality "1"]
[TimeControl "40/6000+30:3000+30"]

{[%evp 21,73,31,30,45,39,34,39,50,41,33,51,31,39,23,22,24,13,9,8,12,6,6,14,0,0,0,0,0,0,0,0,0,0,0,0,0,0,0,0,0,0,0,0,0,0,0,0,0,0,0,0,0,0,0]} 1. e4 {[%emt 0:00:04]} e5 {[%emt 0:00:04]} 2. Nf3 {[%emt 0:00:04]} Nc6 {[%emt 0:00:04]} 3. Bb5 {[%emt 0:00:02]} a6 {[%emt 0:00:06]} 4. Ba4 {[%emt 0:00:03]} Nf6 {[%emt 0:00:05]} 5. O-O {[%emt 0:00:03]} Nxe4 {[%emt 0:00:06]} 6. d4 {[%emt 0:00:04]} b5 {[%emt 0:00:04]} 7. Bb3 {[%emt 0:00:05]} d5 {[%emt 0:00:03][%cal Bd7d5,Bd5d4,Bd4d3][%mdl 32]} 8. dxe5 {[%emt 0:00:05]} Be6 {[%emt 0:00:03]} 9. c3 {[%emt 0:00:06]} Be7 {[%emt 0:00:13]} 10. Nbd2 {[%emt 0:00:08]} Nc5 {[%emt 0:00:10]} 11. Bc2 {[%emt 0:00:05]} d4 {[%emt 0:00:04]} 12. Nb3 {[%emt 0:00:17]} d3 {[%emt 0:00:06]} 13. Bb1 {[%emt 0:00:24]} Nxb3 {[%emt 0:00:04]} 14. axb3 {[%emt 0:00:05] White is slightly better.} Bf5 {[%emt 0:00:04]} 15. b4 {[%emt 0:01:40]} O-O {[%emt 0:00:19]} 16. h3 {[%emt 0:00:03]} Qd7 {[%emt 0:00:20]} 17. Re1 {[%emt 0:00:12]} Rfd8 {[%emt 0:00:15]} 18. g4 {[%emt 0:00:08]} Bg6 {[%emt 0:00:07]} 19. Ba2 {[%emt 0:00:16] The position is equal.} Qc8 {[%emt 0:01:22]} 20. Bg5 {[%emt 0:08:43]} a5 $1 {[%emt 0:00:25]} 21. bxa5 {[%emt 0:00:31] aiming for b4.} Bxg5 $1 {[%emt 0:00:10]} 22. Nxg5 {[%emt 0:00:06]} Nxa5 {[%emt 0:00:02]} 23. Nxf7 {[%emt 0:06:41]} Bxf7 {[%emt 0:00:16]} 24. Bxf7+ {[%emt 0:04:11]} Kxf7 {[%emt 0:00:07]} 25. e6+ $1 {[%emt 0:00:03]} Kg8 $1 {[%emt 0:00:05] [#] White must now prevent ...d2.} 26. e7 {[%emt 0:00:06]} Re8 {[%emt 0:00:03]} 27. Qxd3 {[%emt 0:00:06]} Nb7 {[%emt 0:00:04]} 28. Rxa8 {[%emt 0:00:45]} (28. Qxb5 Rxa1 29. Qd5+ Kh8 30. Rxa1 Rxe7 $19) 28... Qxa8 {[%emt 0:00:04]} 29. Qd5+ {[%emt 0:04:41]} Kh8 {[%emt 0:01:48]} 30. Qd7 {[%emt 0:11:41]} Qb8 {[%emt 0:00:54]} 31. Re5 {[%emt 0:16:15]} Nd6 {[%emt 0:00:33]} 32. Rc5 $1 {[%emt 0:00:13]} h6 {[%emt 0:00:08]} 33. Rxc7 {[%emt 0:05:22]} (33. Qxc7 $2 Qxc7 34. Rxc7 Kg8 $17) 33... Ne4 {[%emt 0:01:01]} 34. Rb7 {[%emt 0:00:21]} Qa8 {[%emt 0:00:04] [#] ...Nc5 would now be deadly.} 35. Ra7 {[%emt 0:00:06]} (35. Qxb5 $2 {loses.} Nd6 $19) (35. Rxb5 Nf6 36. Qc7 Kh7) 35... Qb8 {[%emt 0:00:04]} 36. Rb7 {[%emt 0:00:07]} Qa8 {[%emt 0:00:04] ...Nc5 is the strong threat.} 37. Ra7 {[%emt 0:01:04] Weighted Error Value: White=0.01 (flawless) /Black=0.01 (flawless) .  OK:         	White=16    	Black=13     Best:        	White=1     	Black=2      Strong:       	White=2     	Black=3} (37. Qxb5 $2 {too greedy.} Nd6 38. Qb4 Nxb7 $19 (38... Qxb7 $2 39. Qxd6 Qxe7 40. Qd5 $19)) 1/2-1/2

[Event "German Bundesliga 2023-24"]
[Site "Germany"]
[Date "2024.02.24"]
[Round "10.29"]
[White "Maghsoodloo, Parham"]
[Black "Keymer, Vincent"]
[Result "1-0"]
[ECO "E04"]
[WhiteElo "2707"]
[BlackElo "2721"]
[Annotator "TA"]
[PlyCount "135"]
[EventDate "2023.10.20"]
[EventType "team-tourn"]
[EventCountry "GER"]
[SourceTitle "playchess.com"]
[Source "ChessBase"]
[SourceQuality "1"]
[TimeControl "40/6000+30:3000+30"]

{[%evp 58,135,111,102,125,116,137,147,152,146,146,132,126,143,126,114,133,113,113,113,112,110,116,81,154,157,157,158,186,177,183,179,183,187,180,172,222,181,188,187,189,186,189,0,183,0,197,195,303,303,324,325,324,326,290,237,418,420,528,540,599,591,670,634,652,629,567,0,0,0,442,384,396,412,423,386,363,335,454,452]} 1. d4 {[%emt 0:00:04]} Nf6 {[%emt 0:00:04]} 2. c4 {[%emt 0:00:06]} e6 {[%emt 0:00:04]} 3. Nf3 {[%emt 0:00:04]} d5 {[%emt 0:00:04]} 4. g3 {[%emt 0:00:05]} dxc4 {[%emt 0:00:43]} 5. Bg2 {[%emt 0:00:18]} Bb4+ {[%emt 0:00:06]} 6. Bd2 {[%emt 0:00:31]} a5 {[%emt 0:00:05]} 7. Qc1 {[%emt 0:02:40] E04: Open Catalan: 5 Nf3.} Bxd2+ {[%emt 0:05:17]} 8. Qxd2 {[%emt 0:00:27]} c6 {[%emt 0:00:31]} 9. a4 {[%emt 0:00:05]} b5 {[%emt 0:00:57]} 10. axb5 {[%emt 0:00:08]} cxb5 {[%emt 0:00:05]} 11. Qg5 {[%emt 0:00:05]} O-O {[%emt 0:00:08]} 12. Qxb5 {[%emt 0:00:05]} Ba6 {[%emt 0:00:05]} 13. Qc5 $1 $146 {[%emt 0:00:04][%mdl 8] A top novelty.} ({Predecessor:} 13. Qxa5 Bb7 14. Qxd8 Rxa1 15. Qxf8+ Kxf8 16. O-O Ra2 17. Nc3 Rxb2 18. Rc1 Nbd7 19. Kf1 Nb6 20. Nd1 Rb4 21. Nd2 c3 22. Nxc3 Bxg2+ 23. Kxg2 Rxd4 24. Nf3 {½-½ Svane,R (2625)-Wang,H (2709) FIDE World Cup 2023 (4.4)}) 13... Nbd7 {[%emt 0:24:42]} 14. Qa3 {[%emt 0:02:27]} Bb7 {[%emt 0:06:07]} 15. Nbd2 {[%emt 0:17:33]} Nb6 {[%emt 0:03:55]} 16. O-O {[%emt 0:03:04]} Ne4 {[%emt 0:04:21]} 17. Nb1 {[%emt 0:03:25]} Nd5 {[%emt 0:10:58]} 18. Rc1 {[%emt 0:06:50]} Nb4 {[%emt 0:03:54]} 19. Rxc4 {[%emt 0:16:22]} Nd6 {[%emt 0:23:42]} 20. Rc5 {[%emt 0:04:10]} Ne4 {[%emt 0:03:31]} 21. Rc1 {[%emt 0:03:45]} e5 {[%emt 0:00:04]} 22. Qe3 {[%emt 0:04:06]} exd4 {[%emt 0:00:55]} 23. Qxd4 {[%emt 0:01:18]} Qb8 {[%emt 0:02:02]} 24. Nc3 {[%emt 0:04:13]} Re8 {[%emt 0:02:25]} 25. Nxe4 {[%emt 0:06:26]} Bxe4 {[%emt 0:01:12]} 26. Qc5 {[%emt 0:00:35]} Ra6 {[%emt 0:08:23]} 27. Nd4 {[%emt 0:07:02]} Bxg2 {[%emt 0:00:14]} 28. Kxg2 {[%emt 0:00:06]} g6 {[%emt 0:00:12]} 29. Kg1 {[%emt 0:01:15]} Rd6 {[%emt 0:00:43]} 30. Qc4 {[%emt 0:02:49]} (30. Rxa5 $6 Rd5 $11) 30... Qb6 {[%emt 0:03:34] [#]} 31. e3 $1 {[%emt 0:00:47]} Rb8 {[%emt 0:01:51]} 32. b3 {[%emt 0:01:07]} Rd5 {[%emt 0:01:09]} 33. Qc7 {[%emt 0:02:32]} Rb7 {[%emt 0:03:32]} 34. Qf4 {[%emt 0:07:41]} Rc5 {[%emt 0:01:12]} 35. Rxc5 {[%emt 0:02:19]} Qxc5 {[%emt 0:00:01]} 36. Qe4 {[%emt 0:04:08]} Ra7 {[%emt 0:00:19]} 37. h4 {[%emt 0:00:06]} h5 {[%emt 0:00:34]} 38. Rd1 {[%emt 0:03:09]} Re7 {[%emt 0:00:49]} 39. Qa8+ {[%emt 0:00:12]} Kg7 {[%emt 0:00:05]} 40. Nf3 {[%emt 0:01:07]} Qc6 {[%emt 0:01:10]} (40... Nc6 $142) 41. Rd8 $16 {[%emt 0:50:42]} (41. Qxa5 $2 {is the wrong capture.} Qxf3 42. Rd8 Nc6 $19) 41... Qxa8 {[%emt 0:27:35]} 42. Rxa8 {[%emt 0:00:00]} Nc6 {[%emt 0:00:02]} 43. Ra6 {[%emt 0:00:00]} Rc7 {[%emt 0:00:41]} 44. Kf1 {[%emt 0:00:00]} Kf8 {[%emt 0:03:54]} 45. Nd2 {[%emt 0:00:00]} Ke7 {[%emt 0:00:06]} 46. Nc4 {[%emt 0:00:00]} Kd7 {[%emt 0:00:11]} (46... f6 {was called for.} 47. Ke2 (47. Nxa5 Ne5 $18) 47... Nb8 48. Rxa5 Rb7) 47. Ke2 $18 {[%emt 0:00:00]} Ke8 {[%emt 0:02:04]} 48. Kd2 {[%emt 0:00:00]} ({Resist} 48. Nxa5 Nxa5 49. Rxa5 Rb7) 48... Rd7+ {[%emt 0:01:04]} 49. Kc3 {[%emt 0:00:00]} Rc7 {[%emt 0:00:05]} 50. Kd2 {[%emt 0:00:00]} Rd7+ $1 {[%emt 0:00:27]} 51. Ke2 {[%emt 0:00:00]} Rc7 {[%emt 0:00:03]} 52. Nxa5 {[%emt 0:00:00]} Ne5 {[%emt 0:00:04]} (52... Nxa5 {was necessary.} 53. Rxa5 Rb7) 53. f4 $18 {[%emt 0:00:00]} Ng4 {[%emt 0:00:19]} 54. Nc4 {[%emt 0:00:00]} Kf8 {[%emt 0:00:50]} 55. e4 {[%emt 0:00:00]} Rb7 {[%emt 0:00:10]} 56. Ra3 {[%emt 0:00:00]} Nf6 $2 {[%emt 0:01:38]} (56... Rb8 57. e5 Ke7) 57. Nd6 $18 {[%emt 0:00:00]} Rb4 {[%emt 0:00:29]} 58. e5 {[%emt 0:00:00]} Nd5 {[%emt 0:00:24]} 59. Kd3 {[%emt 0:00:00]} Ke7 {[%emt 0:00:58]} 60. Ra4 {[%emt 0:00:00]} Rb8 {[%emt 0:01:12]} 61. Kd4 {[%emt 0:00:00]} Ke6 {[%emt 0:00:15]} 62. Ra6 $2 {[%emt 0:00:00]} (62. Nxf7 $18 Ne7 63. Nh6 (63. Ng5+ Kf5 $18)) 62... Nb4 $1 $11 {[%emt 0:00:37]} 63. Ra4 {[%emt 0:00:00]} Nc2+ $2 {[%emt 0:03:27][%mdl 8192]} (63... Nd5 $11 {and Black is okay.}) 64. Kd3 $18 {[%emt 0:00:00]} Nb4+ {[%emt 0:00:05]} 65. Kc4 {[%emt 0:00:00]} Nd5 {[%emt 0:00:12]} 66. Ra6 {[%emt 0:00:00]} Nb4 {[%emt 0:00:26]} 67. Ra7 {[%emt 0:00:00]} f6 {[%emt 0:00:04]} 68. Rg7 {[%emt 0:03:58]} 1-0

[Event "German Bundesliga 2023-24"]
[Site "Germany"]
[Date "2024.02.24"]
[Round "10.30"]
[White "Vitiugov, Nikita"]
[Black "Anton Guijarro, David"]
[Result "0-1"]
[ECO "C75"]
[WhiteElo "2686"]
[BlackElo "2653"]
[Annotator "TA"]
[PlyCount "136"]
[EventDate "2023.10.20"]
[EventType "team-tourn"]
[EventCountry "GER"]
[SourceTitle "playchess.com"]
[Source "ChessBase"]
[SourceQuality "1"]
[TimeControl "40/6000+30:3000+30"]

{[%evp 62,136,-69,-160,-79,-100,-90,-112,-102,-100,-112,-147,-154,-171,-162,-187,-181,-195,-170,-200,-179,-169,-164,-202,-137,-164,-92,-91,-86,-90,-90,-238,-225,-236,-250,-235,-241,-234,-115,-124,-124,-114,-120,-116,-113,-250,-250,-250,-209,-209,-209,-183,-183,-183,-183,-234,-234,-354,-245,-1089,-1016,-1259,-1550,-1610,-1281,-1471,-1367,-863,0,-603,-474,-29961,-29959,-29971,-29972,-29960,-29959]} 1. e4 {[%emt 0:00:13]} e5 {[%emt 0:00:18]} 2. Nf3 {[%emt 0:00:08]} Nc6 {[%emt 0:00:11]} 3. Bb5 {[%emt 0:00:17]} a6 {[%emt 0:00:53]} 4. Ba4 {[%emt 0:00:10]} d6 {[%emt 0:00:29]} 5. O-O {[%emt 0:00:52]} Bd7 {[%emt 0:00:24]} 6. c3 {[%emt 0:00:50]} Nge7 {[%emt 0:00:59]} 7. d4 {[%emt 0:02:07]} Ng6 {[%emt 0:00:24]} 8. Be3 {[%emt 0:04:15]} Be7 {[%emt 0:01:18]} 9. Bc2 {[%emt 0:10:21]} O-O {[%emt 0:02:12]} 10. Nbd2 {[%emt 0:04:51]} exd4 {[%emt 0:05:20]} 11. cxd4 {[%emt 0:03:16]} Nb4 {[%emt 0:05:37]} 12. Bb1 {[%emt 0:03:29]} Bb5 {[%emt 0:05:21]} 13. Re1 {[%emt 0:00:32]} d5 {[%emt 0:01:43]} 14. e5 {[%emt 0:03:03]} Nd3 {[%emt 0:13:49]} 15. Bxd3 {[%emt 0:00:37]} Bxd3 {[%emt 0:00:05]} 16. Nb1 {[%emt 0:09:36]} Bf5 {[%emt 0:05:14]} 17. Nc3 {[%emt 0:00:33]} c6 {[%emt 0:06:28]} 18. Qb3 {[%emt 0:07:04]} Rb8 {[%emt 0:06:55]} 19. Na4 {[%emt 0:10:47]} Bg4 {[%emt 0:06:27]} 20. Nd2 {[%emt 0:00:39]} b5 {[%emt 0:00:20]} 21. Nc3 {[%emt 0:00:58]} Be6 {[%emt 0:02:29]} 22. Ne2 {[%emt 0:05:56]} c5 {[%emt 0:00:59]} 23. Qd1 {[%emt 0:07:13]} c4 {[%emt 0:00:36]} 24. Ng3 {[%emt 0:03:05]} Qd7 {[%emt 0:01:21]} 25. Nf3 {[%emt 0:00:48]} b4 {[%emt 0:05:26]} 26. h3 {[%emt 0:04:12]} f5 {[%emt 0:14:30]} 27. exf6 {[%emt 0:01:20]} Bxf6 {[%emt 0:02:10]} 28. Bg5 {[%emt 0:02:39]} Bxg5 {[%emt 0:01:44]} 29. Nxg5 {[%emt 0:00:23]} Bf5 {[%emt 0:00:08]} 30. Re3 {[%emt 0:06:29]} Nf4 {[%emt 0:02:07]} 31. Nf3 {[%emt 0:00:48]} Qd6 {[%emt 0:02:24]} 32. Qd2 {[%emt 0:03:04]} ({Better is} 32. Nxf5 $15 Rxf5 33. Ne5) 32... Bg6 {[%emt 0:04:23]} (32... Bxh3 $142 33. gxh3 Qd7) 33. Ne5 {[%emt 0:00:52]} Nd3 {[%emt 0:00:44]} 34. Rf1 {[%emt 0:01:39]} Rbc8 {[%emt 0:02:54]} 35. Ne2 {[%emt 0:01:51]} a5 {[%emt 0:00:45]} 36. Nxg6 {[%emt 0:04:14]} Qxg6 {[%emt 0:01:16]} (36... hxg6 37. Nc1 $17) 37. Rg3 {[%emt 0:00:31]} Qf6 {[%emt 0:00:56]} 38. Nc1 {[%emt 0:00:18]} Nf4 {[%emt 0:02:23]} (38... Qxd4 39. Nxd3 Rce8 40. a3 $16) 39. Re1 {[%emt 0:00:52]} Rce8 {[%emt 0:02:27]} 40. Ree3 {[%emt 0:02:41]} Re4 {[%emt 0:02:55]} 41. Rxe4 {[%emt 0:09:30]} dxe4 {[%emt 0:00:29]} 42. Qe3 {[%emt 0:04:34]} Re8 {[%emt 0:12:13]} 43. Ne2 {[%emt 0:08:53]} Nxe2+ {[%emt 0:00:56]} (43... Nd3 $1 $19 {[%cal Rd3b2]} 44. Rg4 Rf8 (44... Nxb2 45. Rxe4 Rxe4 46. Qxe4 $11) 45. Qxe4 Qf7 (45... Nxb2 46. Rf4 $11) (45... Nxf2 46. Qd5+ Qf7 47. Qxf7+ Rxf7 48. Rg5 $15) (45... Qxf2+ 46. Kh2 $17)) 44. Qxe2 $17 {[%emt 0:00:06]} Qxd4 {[%emt 0:00:10]} 45. Re3 {[%emt 0:01:18]} h6 {[%emt 0:03:53]} 46. Qc2 {[%emt 0:03:36]} (46. Qh5 $17 Re5 47. Qg4) 46... Rd8 $1 $19 {[%emt 0:08:36]} 47. Rxe4 {[%emt 0:02:38]} Qd1+ {[%emt 0:00:12]} 48. Qxd1 {[%emt 0:00:04]} Rxd1+ {[%emt 0:00:03]} 49. Kh2 {[%emt 0:00:03]} Rd2 {[%emt 0:14:50]} (49... Rc1 $1 $19 {Strongly threatening ...Rc2.} 50. Re5 Rc2 51. Rxa5 Rxb2 (51... Rxf2 52. Rc5 $11)) 50. Rxc4 $17 {[%emt 0:00:29]} Rxb2 {[%emt 0:00:04]} 51. a3 {[%emt 0:00:06]} bxa3 {[%emt 0:00:16]} ({Much worse is} 51... Rxf2 $6 52. axb4 axb4 53. Rxb4 $11) 52. Ra4 {[%emt 0:00:14]} Rxf2 {[%emt 0:00:26]} 53. Rxa5 {[%emt 0:04:41]} (53. Kg3 $17 {might work better.} Rf5 54. Rxa3) 53... a2 $19 {[%emt 0:00:26]} 54. Kg3 {[%emt 0:00:16]} Rc2 {[%emt 0:00:38]} 55. Ra7 {[%emt 0:01:33]} Kf8 {[%emt 0:00:49]} 56. Kf3 {[%emt 0:00:29]} Ke8 {[%emt 0:00:32]} 57. g4 {[%emt 0:00:29]} Kd8 {[%emt 0:00:49]} 58. Ke4 {[%emt 0:00:26]} (58. Kf4 $142) 58... g6 $19 {[%emt 0:03:48]} 59. h4 {[%emt 0:08:04]} (59. Kd3 {was necessary.} Rh2 60. Kd4) 59... Kc8 $19 {[%emt 0:04:09]} 60. h5 $2 {[%emt 0:09:59] [#]} (60. Kd3 Rg2 61. Kc3) 60... Kb8 $1 $19 {[%emt 0:01:14]} 61. Ra3 {[%emt 0:00:17] [#]} g5 $1 {[%emt 0:02:31]} ({Less strong is} 61... gxh5 62. gxh5 Rh2 63. Ra5 $15) 62. Ke5 {[%emt 0:00:48]} Kb7 {[%emt 0:01:29]} 63. Kf5 {[%emt 0:00:17]} Rb2 {[%emt 0:01:20]} 64. Ra4 {[%emt 0:01:59]} Rc2 {[%emt 0:01:22]} 65. Ra3 $1 {[%emt 0:00:12]} Rd2 {[%emt 0:00:30]} 66. Ra4 {[%emt 0:01:08]} (66. Ke5 $19) 66... Kb6 {[%emt 0:01:04]} 67. Ke6 {[%emt 0:03:23]} Kb5 {[%emt 0:00:54]} 68. Ra8 {[%emt 0:00:06]} Rf2 {[%emt 0:00:26]} 0-1

[Event "German Bundesliga 2023-24"]
[Site "Germany"]
[Date "2024.02.24"]
[Round "10.31"]
[White "Korobov, Anton"]
[Black "Donchenko, Alexander"]
[Result "1/2-1/2"]
[ECO "E14"]
[WhiteElo "2658"]
[BlackElo "2664"]
[Annotator "RC"]
[PlyCount "70"]
[EventDate "2023.10.20"]
[EventType "team-tourn"]
[EventCountry "GER"]
[SourceTitle "playchess.com"]
[Source "ChessBase"]
[SourceQuality "1"]
[TimeControl "40/6000+30:3000+30"]

1. d4 {[%emt 0:00:03]} Nf6 {[%emt 0:00:06]} 2. Nf3 {[%emt 0:00:05]} d5 {[%emt 0:00:56]} 3. e3 {[%emt 0:00:30]} e6 {[%emt 0:02:56]} 4. Nbd2 {[%emt 0:01:16]} Be7 {[%emt 0:03:29]} 5. b3 {[%emt 0:01:03]} O-O {[%emt 0:01:34]} 6. Bd3 {[%emt 0:01:12]} b6 {[%emt 0:01:59]} 7. Bb2 {[%emt 0:01:20]} Bb7 {[%emt 0:02:03]} 8. O-O {[%emt 0:04:26]} Nbd7 {[%emt 0:01:21]} 9. Qe2 {[%emt 0:07:41]} c5 {[%emt 0:06:59]} 10. c4 {[%emt 0:05:38]} Rc8 {[%emt 0:05:35]} 11. Rfd1 {[%emt 0:02:33]} Qc7 {[%emt 0:07:18]} 12. Rac1 {[%emt 0:01:45]} Qb8 {[%emt 0:06:07]} 13. cxd5 {[%emt 0:18:14]} Nxd5 {[%emt 0:02:23]} 14. Ne5 {[%emt 0:04:54]} Nxe5 {[%emt 0:08:00]} 15. dxe5 {[%emt 0:03:52]} Nb4 {[%emt 0:06:15]} 16. Bb1 {[%emt 0:00:41]} Ba6 {[%emt 0:01:53]} 17. Nc4 {[%emt 0:01:45]} Rfd8 {[%emt 0:01:38]} 18. a3 {[%emt 0:02:10]} Nc6 {[%emt 0:04:30]} 19. Qc2 {[%emt 0:03:51]} g6 {[%emt 0:05:02]} 20. Nd6 {[%emt 0:03:43]} Bxd6 {[%emt 0:01:12]} 21. exd6 {[%emt 0:00:35]} Rxd6 {[%emt 0:00:25]} 22. Rxd6 {[%emt 0:01:58]} Qxd6 {[%emt 0:00:03]} 23. Rd1 {[%emt 0:00:09]} Qe7 {[%emt 0:01:35]} 24. Qc3 {[%emt 0:03:12]} e5 {[%emt 0:00:55]} 25. Be4 {[%emt 0:02:03]} f6 {[%emt 0:01:59]} 26. f4 {[%emt 0:06:44]} Kg7 {[%emt 0:07:00]} 27. Bxc6 {[%emt 0:06:17]} Rxc6 {[%emt 0:00:05]} 28. fxe5 {[%emt 0:00:07]} fxe5 {[%emt 0:02:52]} 29. Rd5 {[%emt 0:07:30]} Re6 {[%emt 0:01:15]} 30. Rxe5 {[%emt 0:02:59]} Rxe5 {[%emt 0:00:29]} 31. Qxe5+ {[%emt 0:00:15]} Qxe5 {[%emt 0:00:06]} 32. Bxe5+ {[%emt 0:00:03]} Kf7 {[%emt 0:00:06]} 33. Bb8 {[%emt 0:00:05]} c4 {[%emt 0:00:08]} 34. bxc4 {[%emt 0:00:03]} Bxc4 {[%emt 0:00:05]} 35. Bxa7 {[%emt 0:00:05]} b5 {[%emt 0:00:06]} 1/2-1/2

[Event "German Bundesliga 2023-24"]
[Site "Germany"]
[Date "2024.02.24"]
[Round "10.32"]
[White "Wojtaszek, Radoslaw"]
[Black "Amin, Bassem"]
[Result "1/2-1/2"]
[ECO "D78"]
[WhiteElo "2668"]
[BlackElo "2680"]
[Annotator "RC"]
[PlyCount "41"]
[EventDate "2023.10.20"]
[EventType "team-tourn"]
[EventCountry "GER"]
[SourceTitle "playchess.com"]
[Source "ChessBase"]
[SourceQuality "1"]
[TimeControl "40/6000+30:3000+30"]

1. d4 {[%emt 0:00:03]} Nf6 {[%emt 0:01:10]} 2. c4 {[%emt 0:00:04]} g6 {[%emt 0:00:07]} 3. Nf3 {[%emt 0:00:04]} Bg7 {[%emt 0:00:10]} 4. g3 {[%emt 0:00:05]} O-O {[%emt 0:01:46]} 5. Bg2 {[%emt 0:01:00]} c6 {[%emt 0:00:20]} 6. Nc3 {[%emt 0:00:06]} d5 {[%emt 0:00:10]} 7. Qb3 {[%emt 0:00:06]} dxc4 {[%emt 0:13:12]} 8. Qxc4 {[%emt 0:00:25]} Bf5 {[%emt 0:00:10]} 9. O-O {[%emt 0:00:05]} Nbd7 {[%emt 0:02:12]} 10. a4 {[%emt 0:00:11]} a5 {[%emt 0:10:40]} 11. e3 {[%emt 0:00:13]} Qc7 {[%emt 0:22:11]} 12. Qe2 {[%emt 0:14:21]} e5 {[%emt 0:00:46]} 13. e4 {[%emt 0:27:15]} Bg4 {[%emt 0:01:12]} 14. Be3 {[%emt 0:00:08]} exd4 {[%emt 0:08:56]} 15. Bxd4 {[%emt 0:00:18]} Rfe8 {[%emt 0:00:07]} 16. Rad1 {[%emt 0:08:45]} Ne5 {[%emt 0:04:48]} 17. Bxe5 {[%emt 0:03:30]} Rxe5 {[%emt 0:00:55]} 18. h3 {[%emt 0:00:36]} Bxf3 {[%emt 0:00:23]} 19. Qxf3 {[%emt 0:00:05]} Qb6 {[%emt 0:04:27]} 20. Qe2 {[%emt 0:00:39]} Rae8 {[%emt 0:01:12]} 21. Kh2 {[%emt 0:03:51]} 1/2-1/2

[Event "German Bundesliga 2023-24"]
[Site "Germany"]
[Date "2024.02.24"]
[Round "10.33"]
[White "Warmerdam, Max"]
[Black "Gledura, Benjamin"]
[Result "1-0"]
[ECO "B22"]
[WhiteElo "2636"]
[BlackElo "2633"]
[Annotator "TA"]
[PlyCount "79"]
[EventDate "2023.10.20"]
[EventType "team-tourn"]
[EventCountry "GER"]
[SourceTitle "playchess.com"]
[Source "ChessBase"]
[SourceQuality "1"]
[TimeControl "40/6000+30:3000+30"]

{[%evp 22,79,13,27,35,35,29,32,22,31,34,37,87,49,50,56,42,27,24,31,26,10,10,9,43,25,66,59,44,23,45,25,54,22,11,10,53,2,43,13,19,10,32,28,39,39,133,27,39,36,93,97,404,369,566,561,547,512,848,831]} 1. e4 {[%emt 0:00:04]} c5 {[%emt 0:00:32]} 2. Nf3 {[%emt 0:00:06]} Nc6 {[%emt 0:01:14]} 3. c3 {[%emt 0:00:42]} d5 {[%emt 0:04:39]} 4. exd5 {[%emt 0:00:10]} Qxd5 {[%emt 0:00:07]} 5. d4 {[%emt 0:00:32]} e6 {[%emt 0:01:27]} 6. Be3 {[%emt 0:03:02]} cxd4 {[%emt 0:03:13]} 7. cxd4 {[%emt 0:02:08]} Nf6 {[%emt 0:00:10]} 8. Nc3 {[%emt 0:00:29]} Qd6 {[%emt 0:00:16]} 9. a3 {[%emt 0:05:32]} Be7 {[%emt 0:10:48]} 10. Bd3 {[%emt 0:00:52]} O-O {[%emt 0:01:53]} 11. O-O {[%emt 0:00:54]} Rd8 {[%emt 0:12:08]} 12. Rc1 {[%emt 0:12:23]} Bd7 {[%emt 0:14:41]} 13. Bb1 {[%emt 0:20:02]} (13. Nb5 $5 Qb8 $8 14. Bb1 $14) 13... Be8 {[%emt 0:02:22]} 14. Qd3 {[%emt 0:03:43]} g6 {[%emt 0:05:17] White is slightly better.} 15. Rfd1 {[%emt 0:02:30]} Rac8 {[%emt 0:07:44]} 16. Ba2 {[%emt 0:07:15]} b6 {[%emt 0:07:04]} ({Black should try} 16... b5 $14) 17. h3 {[%emt 0:03:20]} Nd5 {[%emt 0:04:32]} 18. Nxd5 {[%emt 0:01:41]} exd5 {[%emt 0:00:18]} 19. b4 {[%emt 0:06:25]} Bf8 {[%emt 0:09:38]} 20. Qd2 {[%emt 0:04:28]} f6 {[%emt 0:04:14]} 21. Bf4 {[%emt 0:02:14]} Qd7 {[%emt 0:00:38]} 22. Nh2 {[%emt 0:00:17][%cal Bf3h2,Bh2g4,Bg4e3][%mdl 32]} g5 {[%emt 0:05:54]} 23. Bg3 {[%emt 0:06:13]} Ne7 {[%emt 0:02:49]} 24. Ng4 {[%emt 0:02:52]} Bg7 {[%emt 0:00:11]} 25. Ne3 {[%emt 0:00:47]} Bf7 {[%emt 0:00:22]} 26. h4 {[%emt 0:02:13]} h6 {[%emt 0:01:12]} 27. Qd3 {[%emt 0:01:09]} Rxc1 {[%emt 0:07:10]} 28. Rxc1 {[%emt 0:00:08]} Rc8 {[%emt 0:00:21] Prevents Rc7} 29. Re1 {[%emt 0:03:18]} ({Better is} 29. Rxc8+ $14 Qxc8 30. Bd6 Qc1+ 31. Kh2) 29... b5 {[%emt 0:01:27]} 30. Bb3 {[%emt 0:05:24][%cal Ba2b3,Bb3d1,Bd1f3,Bf3g4,Bg4d7][%mdl 32]} a6 {[%emt 0:00:22]} 31. Bd1 {[%emt 0:01:46] Strongly threatening Bg4.} Bg6 {[%emt 0:01:20]} 32. Qd2 {[%emt 0:01:12]} Qc6 {[%emt 0:01:33]} 33. Bf3 {[%emt 0:00:42]} Bf7 {[%emt 0:00:45] [#]} (33... Kf8 $14) 34. Qd3 {[%emt 0:01:07]} (34. Bg4 $1 $16 {[%cal Rg4c8]} f5 35. Nxf5 (35. Bxf5 Qc3 $18) 35... Nxf5 36. Bxf5) 34... Bf8 {[%emt 0:00:36]} 35. Bg4 {[%emt 0:05:27]} Qc3 {[%emt 0:00:18]} (35... Bg6 $14 36. Nf5 Nxf5 37. Bxf5 Re8 38. Rxe8 Bxe8) 36. Qd1 {[%emt 0:00:04] White is more active.} Re8 {[%emt 0:00:39][%mdl 8192] This move loses the game for Black.} (36... Rd8 $16 {is tougher.}) 37. Bd7 $18 {[%emt 0:00:43]} Rd8 {[%emt 0:00:02] [#]} (37... Rc8 $142 38. Bxc8 Qxc8) 38. Ng4 $1 {[%emt 0:00:11] White is clearly winning.} Kg7 {[%emt 0:00:58]} 39. Re3 {[%emt 0:01:56]} Qc4 {[%emt 0:00:26]} (39... Qxe3 $142 40. Nxe3 (40. fxe3 Rxd7 41. Qf3 Ng8 $18) 40... Rxd7) 40. hxg5 {[%emt 0:00:45] Weighted Error Value: White=0.14 (very precise) /Black=0.46.  Loses game:     	---       	Black=1      Mistake:       	White=2     	Black=5      Inaccurate:     	White=3     	Black=5      OK:         	White=11    	Black=7      Best:        	White=1     	---} 1-0